[Event "Live Chess"]
[Site "Chess.com"]
[Date "2024.06.01"]
[Round "-"]
[White "GEMdzq"]
[Black "e4evr"]
[Result "0-1"]
[WhiteElo "2299"]
[BlackElo "2280"]
[TimeControl "300"]
[EndTime "14:58:02 PDT"]
[Termination "e4evr won by resignation"]

1. e4 {[%clk 0:04:57.4]} 1... Nc6 {[%clk 0:04:59.1]} 2. Bc4 {[%clk 0:04:53.7]}
2... e6 {[%clk 0:04:57.9]} 3. Nf3 {[%clk 0:04:46.6]} 3... d5 {[%clk 0:04:55.7]}
4. exd5 {[%clk 0:04:45.9]} 4... exd5 {[%clk 0:04:55.6]} 5. Bb5 {[%clk 0:04:45]}
5... Bd6 {[%clk 0:04:54]} 6. O-O {[%clk 0:04:43.4]} 6... Ne7 {[%clk 0:04:53.4]}
7. d4 {[%clk 0:04:41.8]} 7... Bg4 {[%clk 0:04:52.7]} 8. h3 {[%clk 0:04:39.9]}
8... Bh5 {[%clk 0:04:51.3]} 9. Bg5 {[%clk 0:04:36.9]} 9... Qd7 {[%clk
0:04:50.2]} 10. Bxc6 {[%clk 0:04:30.5]} 10... bxc6 {[%clk 0:04:48.2]} 11. Re1
{[%clk 0:04:28.4]} 11... f6 {[%clk 0:04:47]} 12. Bd2 {[%clk 0:04:20.9]} 12...
O-O {[%clk 0:04:45.7]} 13. Nc3 {[%clk 0:04:14.2]} 13... Nf5 {[%clk 0:04:44.9]}
14. g4 {[%clk 0:04:10.1]} 14... Nh6 {[%clk 0:04:30.2]} 15. Bxh6 {[%clk
0:04:06.5]} 15... Bxg4 {[%clk 0:04:29.4]} 16. hxg4 {[%clk 0:04:01.1]} 16...
Qxg4+ {[%clk 0:04:28.7]} 17. Kf1 {[%clk 0:04:00]} 17... Qh3+ {[%clk 0:04:24]}
18. Ke2 {[%clk 0:03:58.7]} 18... Qxh6 {[%clk 0:04:22.1]} 19. Rh1 {[%clk
0:03:48.2]} 19... Rfe8+ {[%clk 0:04:18.1]} 20. Ne5 {[%clk 0:03:31.3]} 20... Qf4
{[%clk 0:04:12.3]} 21. Qd3 {[%clk 0:03:26.2]} 21... fxe5 {[%clk 0:03:58.4]} 22.
Qxh7+ {[%clk 0:03:24.6]} 22... Kf8 {[%clk 0:03:57.5]} 23. Qh8+ {[%clk 0:03:22]}
23... Ke7 {[%clk 0:03:49.2]} 24. Qxg7+ {[%clk 0:03:21.1]} 24... Kd8 {[%clk
0:03:48.4]} 25. Rh7 {[%clk 0:03:04.2]} 25... exd4+ {[%clk 0:03:47]} 26. Kf1
{[%clk 0:03:02]} 26... Kc8 {[%clk 0:03:27.4]} 27. Ne2 {[%clk 0:02:42.5]} 27...
Qf5 {[%clk 0:03:20.9]} 28. Nxd4 {[%clk 0:02:39.4]} 28... Qe4 {[%clk 0:03:06.3]}
29. Qd7+ {[%clk 0:02:36.9]} 29... Kb8 {[%clk 0:03:02.1]} 30. Nxc6+ {[%clk
0:02:30.7]} 30... Kb7 {[%clk 0:03:01.1]} 31. Na5+ {[%clk 0:02:29.5]} 31... Ka6
{[%clk 0:02:59.4]} 32. Qc6+ {[%clk 0:02:04.6]} 32... Kxa5 {[%clk 0:02:58]} 33.
b4+ {[%clk 0:01:39.4]} 33... Qxb4 {[%clk 0:02:56.5]} 34. Qxd5+ {[%clk
0:01:33.5]} 34... Qb5+ {[%clk 0:02:55.6]} 35. Qxb5+ {[%clk 0:01:32.7]} 35...
Kxb5 {[%clk 0:02:55.5]} 36. Rb1+ {[%clk 0:01:31.4]} 36... Kc6 {[%clk 0:02:54.2]}
37. Rh3 {[%clk 0:01:25.9]} 37... Rab8 {[%clk 0:02:52.2]} 38. Rbb3 {[%clk
0:01:24.3]} 38... Rxb3 {[%clk 0:02:51.1]} 39. axb3 {[%clk 0:01:24.1]} 39... Re5
{[%clk 0:02:44.4]} 40. Rh8 {[%clk 0:01:19.3]} 40... a5 {[%clk 0:02:43]} 41. Ra8
{[%clk 0:01:18.3]} 41... Bc5 {[%clk 0:02:41.7]} 42. Rxa5 {[%clk 0:01:14.2]}
42... Rf5 {[%clk 0:02:26.3]} 43. Ke2 {[%clk 0:00:59.4]} 43... Rxf2+ {[%clk
0:02:24.4]} 44. Kd3 {[%clk 0:00:58.4]} 44... Rf3+ {[%clk 0:02:20.5]} 45. Ke2
{[%clk 0:00:51]} 45... Rc3 {[%clk 0:02:17.6]} 46. Kd1 {[%clk 0:00:50]} 46... Bb4
{[%clk 0:02:14.7]} 47. Rh5 {[%clk 0:00:44.7]} 47... Re3 {[%clk 0:02:13.5]} 48.
Rh1 {[%clk 0:00:35.1]} 48... Bc3 {[%clk 0:02:12.8]} 49. Rh6+ {[%clk 0:00:22.8]}
49... Kb5 {[%clk 0:02:10.2]} 50. Rh1 {[%clk 0:00:15.1]} 50... Kb4 {[%clk
0:02:09.4]} 51. Kc1 {[%clk 0:00:14.2]} 51... Ka3 {[%clk 0:02:05]} 52. Kb1 {[%clk
0:00:13.8]} 52... Re1+ {[%clk 0:02:03.4]} 53. Rxe1 {[%clk 0:00:12.8]} 53... Bxe1
{[%clk 0:02:03.3]} 54. Kc1 {[%clk 0:00:11.8]} 54... Bc3 {[%clk 0:02:01.9]} 55.
Kb1 {[%clk 0:00:11]} 55... c6 {[%clk 0:01:59.9]} 56. Kc1 {[%clk 0:00:10]} 56...
Ka2 {[%clk 0:01:59.5]} 0-1

[Event "Live Chess"]
[Site "Chess.com"]
[Date "2024.06.01"]
[Round "-"]
[White "GrahamCuthbert"]
[Black "KnightStripes"]
[Result "0-1"]
[WhiteElo "1015"]
[BlackElo "917"]
[TimeControl "300"]
[EndTime "14:58:02 PDT"]
[Termination "KnightStripes won by resignation"]

1. d4 {[%clk 0:04:58.4]} 1... d6 {[%clk 0:04:51.8]} 2. Bf4 {[%clk 0:04:57.5]}
2... Nf6 {[%clk 0:04:50.3]} 3. e3 {[%clk 0:04:55]} 3... c6 {[%clk 0:04:49.4]} 4.
Nf3 {[%clk 0:04:52.5]} 4... Qa5+ {[%clk 0:04:47]} 5. c3 {[%clk 0:04:49.4]} 5...
Bg4 {[%clk 0:04:44.1]} 6. Be2 {[%clk 0:04:38.5]} 6... Bxf3 {[%clk 0:04:32.2]} 7.
Bxf3 {[%clk 0:04:35.2]} 7... e5 {[%clk 0:04:31.1]} 8. dxe5 {[%clk 0:04:34.2]}
8... dxe5 {[%clk 0:04:29.9]} 9. Bg5 {[%clk 0:04:30]} 9... Be7 {[%clk 0:04:28.8]}
10. Qb3 {[%clk 0:04:14]} 10... b5 {[%clk 0:04:12.1]} 11. Nd2 {[%clk 0:03:58.7]}
11... O-O {[%clk 0:04:10.6]} 12. Bxf6 {[%clk 0:03:56.4]} 12... Bxf6 {[%clk
0:04:03]} 13. Ne4 {[%clk 0:03:54.9]} 13... Be7 {[%clk 0:03:52.2]} 14. O-O {[%clk
0:03:45.9]} 14... Kh8 {[%clk 0:03:49]} 15. Qc2 {[%clk 0:03:17.5]} 15... Nd7
{[%clk 0:03:30]} 16. Rad1 {[%clk 0:03:13.3]} 16... Nf6 {[%clk 0:03:27.5]} 17.
Nxf6 {[%clk 0:03:08.7]} 17... Bxf6 {[%clk 0:03:26.3]} 18. Bxc6 {[%clk
0:03:06.5]} 18... Rac8 {[%clk 0:03:15.5]} 19. Be4 {[%clk 0:03:03.4]} 19... Qxa2
{[%clk 0:03:08.6]} 20. Bxh7 {[%clk 0:03:01.2]} 20... g6 {[%clk 0:03:01.8]} 21.
Bxg6 {[%clk 0:02:50.4]} 21... fxg6 {[%clk 0:03:00.8]} 22. Qxg6 {[%clk
0:02:50.3]} 22... Qf7 {[%clk 0:02:54.6]} 23. Qh6+ {[%clk 0:02:40.2]} 23... Qh7
{[%clk 0:02:49.5]} 24. Rd7 {[%clk 0:02:28.6]} 24... Qxh6 {[%clk 0:02:43.4]} 25.
Rfd1 {[%clk 0:02:17.6]} 25... Rg8 {[%clk 0:02:30.7]} 26. R7d6 {[%clk 0:02:01.1]}
26... Qg6 {[%clk 0:02:28.4]} 27. g3 {[%clk 0:01:57.4]} 27... Rcd8 {[%clk
0:02:15.8]} 28. Rxd8 {[%clk 0:01:43.8]} 28... Rxd8 {[%clk 0:02:13.5]} 29. Ra1
{[%clk 0:01:41.6]} 29... Rd7 {[%clk 0:02:00.1]} 30. Ra5 {[%clk 0:01:35.2]} 30...
Qd3 {[%clk 0:01:55.6]} 0-1

[Event "Live Chess"]
[Site "Chess.com"]
[Date "2024.06.01"]
[Round "-"]
[White "Mangoalo"]
[Black "jimwad"]
[Result "0-1"]
[WhiteElo "1060"]
[BlackElo "1289"]
[TimeControl "300"]
[EndTime "14:58:33 PDT"]
[Termination "jimwad won by resignation"]

1. e4 {[%clk 0:04:58.5]} 1... e5 {[%clk 0:04:59]} 2. Nf3 {[%clk 0:04:58]} 2...
Nc6 {[%clk 0:04:57.9]} 3. Bb5 {[%clk 0:04:57.6]} 3... Nf6 {[%clk 0:04:56.8]} 4.
Nc3 {[%clk 0:04:55.6]} 4... Bc5 {[%clk 0:04:50.6]} 5. O-O {[%clk 0:04:53.2]}
5... d6 {[%clk 0:04:49.2]} 6. d3 {[%clk 0:04:51.7]} 6... Bd7 {[%clk 0:04:47.7]}
7. Bg5 {[%clk 0:04:51]} 7... O-O {[%clk 0:04:45.4]} 8. Qd2 {[%clk 0:04:49.1]}
8... h6 {[%clk 0:04:44.2]} 9. Bxf6 {[%clk 0:04:47.4]} 9... Qxf6 {[%clk
0:04:42.6]} 10. a3 {[%clk 0:04:46.1]} 10... Qg6 {[%clk 0:04:41.1]} 11. g3 {[%clk
0:04:40.9]} 11... Bh3 {[%clk 0:04:38.9]} 12. Nh4 {[%clk 0:04:39.6]} 12... Qf6
{[%clk 0:04:30.8]} 13. Nd5 {[%clk 0:04:35.8]} 13... Qd8 {[%clk 0:04:26.3]} 14.
b4 {[%clk 0:04:23]} 14... Bd4 {[%clk 0:04:23.1]} 15. Rad1 {[%clk 0:04:17.1]}
15... Bxf1 {[%clk 0:04:18.7]} 16. Rxf1 {[%clk 0:04:15.2]} 16... Bb6 {[%clk
0:04:11.5]} 17. c4 {[%clk 0:04:08.9]} 17... Ne7 {[%clk 0:04:09.3]} 18. Nxb6
{[%clk 0:04:05.4]} 18... axb6 {[%clk 0:04:07.4]} 19. Qc1 {[%clk 0:03:57.7]}
19... c6 {[%clk 0:04:06.2]} 20. Bxc6 {[%clk 0:03:56.3]} 20... bxc6 {[%clk
0:04:04.8]} 0-1

[Event "Live Chess"]
[Site "Chess.com"]
[Date "2024.06.01"]
[Round "-"]
[White "KeithArkell"]
[Black "bonantagulo"]
[Result "0-1"]
[WhiteElo "2402"]
[BlackElo "2192"]
[TimeControl "300"]
[EndTime "14:58:35 PDT"]
[Termination "bonantagulo won by resignation"]

1. d4 {[%clk 0:04:57.7]} 1... e6 {[%clk 0:04:54.6]} 2. Nf3 {[%clk 0:04:56.7]}
2... b6 {[%clk 0:04:54.1]} 3. c4 {[%clk 0:04:55]} 3... Bb7 {[%clk 0:04:50.7]} 4.
Nc3 {[%clk 0:04:54.3]} 4... Bb4 {[%clk 0:04:49.3]} 5. g3 {[%clk 0:04:53.3]} 5...
Nf6 {[%clk 0:04:47]} 6. Bg2 {[%clk 0:04:52.3]} 6... Ne4 {[%clk 0:04:46.6]} 7.
Qb3 {[%clk 0:04:50.7]} 7... Bxc3+ {[%clk 0:04:44.2]} 8. bxc3 {[%clk 0:04:50.1]}
8... O-O {[%clk 0:04:42.8]} 9. O-O {[%clk 0:04:49.3]} 9... d5 {[%clk 0:04:37]}
10. cxd5 {[%clk 0:04:47.5]} 10... exd5 {[%clk 0:04:32.9]} 11. a4 {[%clk
0:04:44.6]} 11... Nc6 {[%clk 0:04:31.7]} 12. Ba3 {[%clk 0:04:43.7]} 12... Na5
{[%clk 0:04:29.8]} 13. Qc2 {[%clk 0:04:42]} 13... Re8 {[%clk 0:04:28.8]} 14. Nd2
{[%clk 0:04:40.4]} 14... Nxd2 {[%clk 0:04:27.3]} 15. Qxd2 {[%clk 0:04:39.7]}
15... Nc4 {[%clk 0:04:26.9]} 16. Qc2 {[%clk 0:04:38.7]} 16... Nxa3 {[%clk
0:04:25.6]} 17. Rxa3 {[%clk 0:04:37.4]} 17... Qe7 {[%clk 0:04:24.2]} 18. Re1
{[%clk 0:04:36.2]} 18... Qxa3 {[%clk 0:04:22.9]} 19. e3 {[%clk 0:04:34.4]} 19...
c5 {[%clk 0:04:19.5]} 20. h4 {[%clk 0:04:30.1]} 20... Rac8 {[%clk 0:04:16.1]}
21. Qf5 {[%clk 0:04:28]} 21... Qxc3 {[%clk 0:04:10]} 22. Rd1 {[%clk 0:04:27.3]}
22... Qb3 {[%clk 0:03:57.3]} 23. Rb1 {[%clk 0:04:19.2]} 23... Qxa4 {[%clk
0:03:51.5]} 24. h5 {[%clk 0:04:18.4]} 24... h6 {[%clk 0:03:49.9]} 25. Kf1 {[%clk
0:04:15.1]} 25... cxd4 {[%clk 0:03:43.2]} 0-1

[Event "Live Chess"]
[Site "Chess.com"]
[Date "2024.06.01"]
[Round "-"]
[White "asingardenof"]
[Black "Rusty_Bridges"]
[Result "0-1"]
[WhiteElo "616"]
[BlackElo "1543"]
[TimeControl "300"]
[EndTime "14:58:36 PDT"]
[Termination "Rusty_Bridges won by resignation"]

1. d4 {[%clk 0:04:55.9]} 1... d5 {[%clk 0:04:58.6]} 2. c4 {[%clk 0:04:54.8]}
2... e6 {[%clk 0:04:57.4]} 3. Nf3 {[%clk 0:04:52.7]} 3... Nf6 {[%clk 0:04:56.2]}
4. g3 {[%clk 0:04:51.4]} 4... Be7 {[%clk 0:04:54.6]} 5. Bg2 {[%clk 0:04:51.3]}
5... c6 {[%clk 0:04:53.3]} 6. Nc3 {[%clk 0:04:51.2]} 6... b6 {[%clk 0:04:50.3]}
7. O-O {[%clk 0:04:51.1]} 7... Bb7 {[%clk 0:04:49.4]} 8. Bf4 {[%clk 0:04:44.2]}
8... Nbd7 {[%clk 0:04:47.6]} 9. Ne5 {[%clk 0:04:35.3]} 9... Nxe5 {[%clk
0:04:44.8]} 10. Bxe5 {[%clk 0:04:35.2]} 10... Bd6 {[%clk 0:04:40.6]} 11. Bf3
{[%clk 0:04:27.7]} 11... Bxe5 {[%clk 0:04:37.1]} 12. dxe5 {[%clk 0:04:27.6]}
12... Nd7 {[%clk 0:04:34.1]} 13. c5 {[%clk 0:04:26.2]} 13... Nxe5 {[%clk
0:04:31.9]} 14. Bg2 {[%clk 0:04:23]} 14... bxc5 {[%clk 0:04:29.9]} 15. e3 {[%clk
0:04:13]} 15... O-O {[%clk 0:04:21.7]} 16. Ne2 {[%clk 0:04:08]} 16... Ba6 {[%clk
0:04:16.4]} 17. Bf3 {[%clk 0:03:56.9]} 17... Nxf3+ {[%clk 0:04:13.6]} 18. Kg2
{[%clk 0:03:55.2]} 18... Ne5 {[%clk 0:04:10.4]} 19. f4 {[%clk 0:03:53.4]} 19...
Bxe2 {[%clk 0:04:08.6]} 20. Qxe2 {[%clk 0:03:52.1]} 20... Nc4 {[%clk 0:03:59.5]}
21. b3 {[%clk 0:03:43.9]} 21... Nd6 {[%clk 0:03:57.3]} 22. Rab1 {[%clk
0:03:43.8]} 22... Ne4 {[%clk 0:03:56]} 23. Qg4 {[%clk 0:03:23.2]} 23... Nd2
{[%clk 0:03:52.8]} 24. Rfd1 {[%clk 0:03:16.5]} 24... Nxb1 {[%clk 0:03:50.7]} 25.
Rxb1 {[%clk 0:03:16.4]} 25... a5 {[%clk 0:03:48.9]} 26. a4 {[%clk 0:03:14.6]}
26... Rb8 {[%clk 0:03:45.4]} 27. Qd1 {[%clk 0:03:06.5]} 27... Rb4 {[%clk
0:03:43.6]} 28. Rc1 {[%clk 0:03:02.9]} 28... Qb6 {[%clk 0:03:40.1]} 29. Qd3
{[%clk 0:02:57.8]} 29... Rxb3 {[%clk 0:03:36]} 30. Qc2 {[%clk 0:02:52.8]} 30...
c4 {[%clk 0:03:27.3]} 31. Kf3 {[%clk 0:02:43.6]} 31... Rb8 {[%clk 0:03:24.8]}
32. g4 {[%clk 0:02:34.9]} 32... Qxe3+ {[%clk 0:03:23.5]} 33. Kg2 {[%clk
0:02:31.5]} 33... Qf3+ {[%clk 0:03:16.6]} 34. Kg1 {[%clk 0:02:29.1]} 34... Qxg4+
{[%clk 0:03:14.9]} 35. Kf2 {[%clk 0:02:23.7]} 35... Rb2 {[%clk 0:03:12.7]} 0-1

[Event "Live Chess"]
[Site "Chess.com"]
[Date "2024.06.01"]
[Round "-"]
[White "jellhhggffhjjjjjj"]
[Black "Ferrarifan27"]
[Result "0-1"]
[WhiteElo "404"]
[BlackElo "2092"]
[TimeControl "300"]
[EndTime "14:58:46 PDT"]
[Termination "Ferrarifan27 won by checkmate"]

1. e4 {[%clk 0:04:48.2]} 1... e5 {[%clk 0:04:58.2]} 2. Nc3 {[%clk 0:04:46.7]}
2... Nc6 {[%clk 0:04:57.1]} 3. Bb5 {[%clk 0:04:44.9]} 3... a6 {[%clk 0:04:55]}
4. Bxc6 {[%clk 0:04:43.3]} 4... dxc6 {[%clk 0:04:54.3]} 5. d3 {[%clk 0:04:42.1]}
5... Bb4 {[%clk 0:04:51.2]} 6. Qd2 {[%clk 0:04:37.6]} 6... Nf6 {[%clk
0:04:46.1]} 7. a3 {[%clk 0:04:35.2]} 7... Ba5 {[%clk 0:04:44.4]} 8. b4 {[%clk
0:04:33.7]} 8... Bb6 {[%clk 0:04:42.9]} 9. Na4 {[%clk 0:04:31.2]} 9... Ba7
{[%clk 0:04:36.9]} 10. Bb2 {[%clk 0:04:24.2]} 10... Qe7 {[%clk 0:04:24.1]} 11.
Nf3 {[%clk 0:04:21.2]} 11... Ng4 {[%clk 0:04:23]} 12. O-O {[%clk 0:04:15.5]}
12... f6 {[%clk 0:04:21.8]} 13. h3 {[%clk 0:04:13.7]} 13... Nh6 {[%clk
0:04:20.3]} 14. Bc1 {[%clk 0:04:05.8]} 14... O-O {[%clk 0:04:18.6]} 15. Qc3
{[%clk 0:04:04.4]} 15... Nf7 {[%clk 0:04:16.3]} 16. g3 {[%clk 0:03:59.5]} 16...
Bxh3 {[%clk 0:04:14.7]} 17. Re1 {[%clk 0:03:53]} 17... Bg4 {[%clk 0:03:58.4]}
18. Kg2 {[%clk 0:03:49.7]} 18... Bxf3+ {[%clk 0:03:56.2]} 19. Kxf3 {[%clk
0:03:48.5]} 19... Bd4 {[%clk 0:03:55.6]} 20. Qc5 {[%clk 0:03:28.3]} 20... Bxc5
{[%clk 0:03:53.3]} 21. Nxc5 {[%clk 0:03:21.4]} 21... b6 {[%clk 0:03:50.7]} 22.
Be3 {[%clk 0:03:16.9]} 22... bxc5 {[%clk 0:03:44.9]} 23. Bxc5 {[%clk 0:03:15.4]}
23... Nd6 {[%clk 0:03:44.5]} 24. Ke3 {[%clk 0:03:06.1]} 24... Qe6 {[%clk
0:03:37.3]} 25. Rh1 {[%clk 0:02:59.8]} 25... Rf7 {[%clk 0:03:30.4]} 26. Rh2
{[%clk 0:02:58.3]} 26... f5 {[%clk 0:03:25.1]} 27. Rah1 {[%clk 0:02:53.8]} 27...
h6 {[%clk 0:03:20.7]} 28. g4 {[%clk 0:02:49.6]} 28... fxg4 {[%clk 0:03:17.8]}
29. Rh4 {[%clk 0:02:44.3]} 29... Rf3+ {[%clk 0:03:16]} 30. Kd2 {[%clk
0:02:41.8]} 30... Raf8 {[%clk 0:03:13.2]} 31. Kc3 {[%clk 0:02:39.8]} 31... Rxf2
{[%clk 0:03:10.8]} 32. Bxd6 {[%clk 0:02:30.3]} 32... cxd6 {[%clk 0:03:05.8]} 33.
Rg1 {[%clk 0:02:26.1]} 33... R8f4 {[%clk 0:03:00.6]} 34. a4 {[%clk 0:02:18.6]}
34... g3 {[%clk 0:02:54.4]} 35. Rxg3 {[%clk 0:02:11.4]} 35... Rxh4 {[%clk
0:02:52.6]} 36. b5 {[%clk 0:02:07]} 36... cxb5 {[%clk 0:02:49]} 37. axb5 {[%clk
0:02:05.6]} 37... axb5 {[%clk 0:02:44.1]} 38. Rxg7+ {[%clk 0:01:22.8]} 38...
Kxg7 {[%clk 0:02:40.4]} 39. Kb4 {[%clk 0:01:21.9]} 39... Rxc2 {[%clk 0:02:37.3]}
40. Kxb5 {[%clk 0:01:20.5]} 40... Qb3+ {[%clk 0:02:35.7]} 41. Ka5 {[%clk
0:01:19]} 41... Ra2# {[%clk 0:02:34.9]} 0-1

[Event "Live Chess"]
[Site "Chess.com"]
[Date "2024.06.01"]
[Round "-"]
[White "NeilDruggan73"]
[Black "dhairyapandyauk"]
[Result "0-1"]
[WhiteElo "1743"]
[BlackElo "1671"]
[TimeControl "300"]
[EndTime "14:58:49 PDT"]
[Termination "dhairyapandyauk won by resignation"]

1. d4 {[%clk 0:04:57.1]} 1... Nf6 {[%clk 0:04:58.7]} 2. Bg5 {[%clk 0:04:54.4]}
2... d5 {[%clk 0:04:53.9]} 3. Bxf6 {[%clk 0:04:50]} 3... exf6 {[%clk 0:04:53.5]}
4. e3 {[%clk 0:04:49]} 4... Bd6 {[%clk 0:04:52.4]} 5. g3 {[%clk 0:04:45.9]} 5...
Bf5 {[%clk 0:04:51.2]} 6. Bg2 {[%clk 0:04:44.2]} 6... c6 {[%clk 0:04:49.9]} 7.
Ne2 {[%clk 0:04:43.1]} 7... Nd7 {[%clk 0:04:48.8]} 8. O-O {[%clk 0:04:41.5]}
8... O-O {[%clk 0:04:47.4]} 9. b3 {[%clk 0:04:38.3]} 9... a5 {[%clk 0:04:43]}
10. c4 {[%clk 0:04:34.2]} 10... dxc4 {[%clk 0:04:37]} 11. bxc4 {[%clk
0:04:32.9]} 11... Rc8 {[%clk 0:04:29.5]} 12. a4 {[%clk 0:04:24.3]} 12... b6
{[%clk 0:04:26.2]} 13. Nbc3 {[%clk 0:04:20.4]} 13... c5 {[%clk 0:04:25.4]} 14.
Nb5 {[%clk 0:04:17.1]} 14... Be7 {[%clk 0:04:21.3]} 15. e4 {[%clk 0:04:11.1]}
15... Bg6 {[%clk 0:04:18.9]} 16. f4 {[%clk 0:04:08.3]} 16... cxd4 {[%clk
0:04:16.7]} 17. Nexd4 {[%clk 0:04:00.9]} 17... Rxc4 {[%clk 0:04:12.5]} 18. f5
{[%clk 0:03:59.3]} 18... Bc5 {[%clk 0:04:06.2]} 19. fxg6 {[%clk 0:03:51.9]}
19... Rxd4 {[%clk 0:03:59.5]} 20. Nxd4 {[%clk 0:03:48.8]} 20... Ne5 {[%clk
0:03:59.1]} 21. Kh1 {[%clk 0:03:39.3]} 21... Bxd4 {[%clk 0:03:57.1]} 22. Rb1
{[%clk 0:03:38.2]} 22... fxg6 {[%clk 0:03:53.9]} 23. Qb3+ {[%clk 0:03:25.5]}
23... Kh8 {[%clk 0:03:51.4]} 24. Rfd1 {[%clk 0:03:24.5]} 24... Qd6 {[%clk
0:03:35.4]} 25. Qb5 {[%clk 0:03:12.6]} 25... Rd8 {[%clk 0:03:30.3]} 26. Qa6
{[%clk 0:03:08.6]} 26... Qc7 {[%clk 0:03:18.8]} 27. Rbc1 {[%clk 0:03:02.3]}
27... Bc5 {[%clk 0:03:17.3]} 28. Rxd8+ {[%clk 0:02:54]} 28... Qxd8 {[%clk
0:03:16.8]} 29. Qb7 {[%clk 0:02:51.5]} 29... h5 {[%clk 0:03:14.3]} 30. Qd5
{[%clk 0:02:45.2]} 30... Qe8 {[%clk 0:03:11.7]} 31. Rxc5 {[%clk 0:02:31.4]}
31... bxc5 {[%clk 0:03:06.3]} 32. Qxc5 {[%clk 0:02:29.9]} 32... Qxa4 {[%clk
0:03:05.4]} 33. h3 {[%clk 0:02:23.8]} 33... Qd1+ {[%clk 0:02:58.2]} 34. Kh2
{[%clk 0:02:22.3]} 34... a4 {[%clk 0:02:57.6]} 35. Qg1 {[%clk 0:02:06.5]} 35...
Qxg1+ {[%clk 0:02:51.9]} 36. Kxg1 {[%clk 0:02:04.7]} 36... a3 {[%clk 0:02:51.5]}
0-1

[Event "Live Chess"]
[Site "Chess.com"]
[Date "2024.06.01"]
[Round "-"]
[White "Mikhail_Golubev"]
[Black "WorcesterYork"]
[Result "1-0"]
[WhiteElo "2592"]
[BlackElo "2475"]
[TimeControl "300"]
[EndTime "14:58:53 PDT"]
[Termination "Mikhail_Golubev won by checkmate"]

1. e4 {[%clk 0:04:58.1]} 1... c5 {[%clk 0:04:59.2]} 2. Nf3 {[%clk 0:04:55.4]}
2... Nc6 {[%clk 0:04:58.8]} 3. Nc3 {[%clk 0:04:53.9]} 3... d6 {[%clk 0:04:57.7]}
4. d4 {[%clk 0:04:52.9]} 4... cxd4 {[%clk 0:04:57.6]} 5. Nxd4 {[%clk 0:04:52.2]}
5... e5 {[%clk 0:04:56.8]} 6. Nf5 {[%clk 0:04:50.4]} 6... Bxf5 {[%clk
0:04:53.6]} 7. exf5 {[%clk 0:04:50.3]} 7... Nf6 {[%clk 0:04:52.3]} 8. Bc4 {[%clk
0:04:47.7]} 8... Be7 {[%clk 0:04:51.5]} 9. Bg5 {[%clk 0:04:45.6]} 9... Rc8
{[%clk 0:04:50.8]} 10. Bxf6 {[%clk 0:04:33.4]} 10... Bxf6 {[%clk 0:04:49.7]} 11.
O-O {[%clk 0:04:31]} 11... O-O {[%clk 0:04:48.3]} 12. Ne4 {[%clk 0:04:05.1]}
12... Nd4 {[%clk 0:04:43.9]} 13. Bb3 {[%clk 0:03:43.7]} 13... d5 {[%clk
0:04:42.7]} 14. Nxf6+ {[%clk 0:03:42]} 14... Qxf6 {[%clk 0:04:42.6]} 15. c3
{[%clk 0:03:40]} 15... Nxf5 {[%clk 0:04:38.5]} 16. Qxd5 {[%clk 0:03:37.1]} 16...
b6 {[%clk 0:04:37]} 17. Rfe1 {[%clk 0:03:10.3]} 17... Rc5 {[%clk 0:04:34.8]} 18.
Qd7 {[%clk 0:02:49.9]} 18... Nh4 {[%clk 0:04:24.3]} 19. Rad1 {[%clk 0:02:36.4]}
19... Qg5 {[%clk 0:03:55.5]} 20. Bd5 {[%clk 0:02:13.8]} 20... h5 {[%clk
0:03:44.6]} 21. g3 {[%clk 0:02:03.8]} 21... Ng6 {[%clk 0:03:39.1]} 22. Be4
{[%clk 0:01:27]} 22... h4 {[%clk 0:03:27.8]} 23. Qf5 {[%clk 0:01:24.4]} 23...
Qxf5 {[%clk 0:03:24.1]} 24. Bxf5 {[%clk 0:01:24.3]} 24... hxg3 {[%clk
0:03:22.7]} 25. hxg3 {[%clk 0:01:22.4]} 25... Ne7 {[%clk 0:03:19.9]} 26. Bc2
{[%clk 0:01:19.3]} 26... g6 {[%clk 0:03:11.7]} 27. Rd7 {[%clk 0:01:15.6]} 27...
Nc6 {[%clk 0:03:08.1]} 28. Red1 {[%clk 0:01:04.2]} 28... Kg7 {[%clk 0:03:04.6]}
29. R1d6 {[%clk 0:01:01.4]} 29... Na5 {[%clk 0:02:52.1]} 30. Rxg6+ {[%clk
0:00:56.3]} 30... Kh7 {[%clk 0:02:48.5]} 31. Rxb6+ {[%clk 0:00:49.3]} 31... Kg7
{[%clk 0:02:48]} 32. Rg6+ {[%clk 0:00:47.6]} 32... Kh8 {[%clk 0:02:47.1]} 33.
Rg4 {[%clk 0:00:40.7]} 33... Nc4 {[%clk 0:02:44.9]} 34. b3 {[%clk 0:00:34.4]}
34... Nb6 {[%clk 0:02:39.4]} 35. Rd6 {[%clk 0:00:33.4]} 35... f6 {[%clk
0:02:33.7]} 36. Kg2 {[%clk 0:00:32]} 36... Rxc3 {[%clk 0:02:31.3]} 37. Rd1
{[%clk 0:00:30.4]} 37... Rf7 {[%clk 0:02:29.1]} 38. Rh1+ {[%clk 0:00:29]} 38...
Rh7 {[%clk 0:02:27.5]} 39. Rxh7# {[%clk 0:00:27.9]} 1-0

[Event "Live Chess"]
[Site "Chess.com"]
[Date "2024.06.01"]
[Round "-"]
[White "StoreySniper"]
[Black "DylanMeyer1"]
[Result "1-0"]
[WhiteElo "2534"]
[BlackElo "1709"]
[TimeControl "300"]
[EndTime "14:59:33 PDT"]
[Termination "StoreySniper won by resignation"]

1. e4 {[%clk 0:04:58.1]} 1... d5 {[%clk 0:04:59.3]} 2. exd5 {[%clk 0:04:56.8]}
2... Qxd5 {[%clk 0:04:58.1]} 3. Nc3 {[%clk 0:04:55.7]} 3... Qd6 {[%clk
0:04:57.5]} 4. Nf3 {[%clk 0:04:54.2]} 4... Nf6 {[%clk 0:04:55.5]} 5. g3 {[%clk
0:04:53.6]} 5... a6 {[%clk 0:04:43.7]} 6. Bg2 {[%clk 0:04:52]} 6... g6 {[%clk
0:04:42.3]} 7. O-O {[%clk 0:04:51.2]} 7... Bg7 {[%clk 0:04:41.8]} 8. d4 {[%clk
0:04:48.6]} 8... O-O {[%clk 0:04:41]} 9. Bf4 {[%clk 0:04:47.7]} 9... Qd8 {[%clk
0:04:39.5]} 10. Qd2 {[%clk 0:04:42.1]} 10... c6 {[%clk 0:04:38.9]} 11. Bh6
{[%clk 0:04:38]} 11... e6 {[%clk 0:04:32]} 12. Rad1 {[%clk 0:04:30]} 12... Qc7
{[%clk 0:04:26.3]} 13. Bxg7 {[%clk 0:04:27.2]} 13... Kxg7 {[%clk 0:04:26.2]} 14.
Qg5 {[%clk 0:04:21]} 14... b6 {[%clk 0:04:23.2]} 15. Qh4 {[%clk 0:04:12.1]}
15... Bb7 {[%clk 0:04:18.9]} 16. Ng5 {[%clk 0:04:10.9]} 16... h6 {[%clk
0:04:16.5]} 17. Nge4 {[%clk 0:04:08.7]} 17... Nxe4 {[%clk 0:04:14.8]} 18. Nxe4
{[%clk 0:04:07.6]} 18... Nd7 {[%clk 0:04:13.4]} 19. c4 {[%clk 0:03:59.8]} 19...
Rae8 {[%clk 0:04:11.3]} 20. Rd2 {[%clk 0:03:55.6]} 20... f5 {[%clk 0:04:10.4]}
21. Nc3 {[%clk 0:03:52.7]} 21... e5 {[%clk 0:04:09.7]} 22. Rfd1 {[%clk 0:03:39]}
22... Rf7 {[%clk 0:03:28]} 23. d5 {[%clk 0:03:20.2]} 23... g5 {[%clk 0:03:09.8]}
24. Qh5 {[%clk 0:03:15.9]} 24... Nf6 {[%clk 0:03:08.4]} 25. Qe2 {[%clk
0:03:13.5]} 25... cxd5 {[%clk 0:03:04.9]} 26. Nxd5 {[%clk 0:03:08.6]} 26... Nxd5
{[%clk 0:03:03.3]} 27. Bxd5 {[%clk 0:03:06.8]} 27... Bxd5 {[%clk 0:03:01.8]} 28.
Rxd5 {[%clk 0:03:05]} 28... Ree7 {[%clk 0:02:58.9]} 29. c5 {[%clk 0:02:54.2]}
29... bxc5 {[%clk 0:02:54.3]} 30. Qxa6 {[%clk 0:02:53]} 30... Rf6 {[%clk
0:02:44.9]} 31. Qa8 {[%clk 0:02:50.7]} 31... Ref7 {[%clk 0:02:32.2]} 32. Rd8
{[%clk 0:02:46.4]} 32... Rf8 {[%clk 0:02:30.8]} 33. R1d7+ {[%clk 0:02:44.5]}
33... R6f7 {[%clk 0:02:27.5]} 34. Rxc7 {[%clk 0:02:39.5]} 34... Rxc7 {[%clk
0:02:23.3]} 35. Rxf8 {[%clk 0:02:37.5]} 1-0